[Event "Late-Titled-Tuesday-Blitz-March-19-2024"]
[Site "Chess.com"]
[Date "2024.03.19"]
[Round "7"]
[White "Viktor_Poddubnyi"]
[Black "balack95"]
[Result "1-0"]
[WhiteElo "2306"]
[BlackElo "2435"]
[TimeControl "180+1"]
[EndTime "15:15:58 PDT"]
[Termination "Viktor_Poddubnyi won by checkmate"]

1. e4 {[%clk 0:03:00]} 1... c5 {[%clk 0:02:59.9]} 2. Nf3 {[%clk 0:02:59.7]} 2...
e6 {[%clk 0:03:00.4]} 3. g3 {[%clk 0:02:58.4]} 3... d5 {[%clk 0:03:00]} 4. exd5
{[%clk 0:02:58.1]} 4... Qxd5 {[%clk 0:02:59.7]} 5. Bg2 {[%clk 0:02:57.3]} 5...
Nc6 {[%clk 0:03:00.3]} 6. O-O {[%clk 0:02:56.8]} 6... Nf6 {[%clk 0:03:00.9]} 7.
c3 {[%clk 0:02:43.4]} 7... Qd8 {[%clk 0:02:57.7]} 8. d4 {[%clk 0:02:36]} 8...
cxd4 {[%clk 0:02:57.6]} 9. Nxd4 {[%clk 0:02:34.7]} 9... Bd7 {[%clk 0:02:57.6]}
10. Nb5 {[%clk 0:02:15.9]} 10... Be7 {[%clk 0:02:47]} 11. Nd6+ {[%clk
0:02:13.8]} 11... Bxd6 {[%clk 0:02:47.5]} 12. Qxd6 {[%clk 0:02:14.5]} 12... Qe7
{[%clk 0:02:47.2]} 13. Bf4 {[%clk 0:02:03.8]} 13... Qxd6 {[%clk 0:02:46.5]} 14.
Bxd6 {[%clk 0:02:04.7]} 14... O-O-O {[%clk 0:02:47.2]} 15. Na3 {[%clk
0:01:55.8]} 15... Ne8 {[%clk 0:02:42.4]} 16. Bc5 {[%clk 0:01:45.5]} 16... b6
{[%clk 0:02:41.2]} 17. Be3 {[%clk 0:01:44.2]} 17... Nd6 {[%clk 0:02:35.7]} 18.
Rad1 {[%clk 0:01:17.4]} 18... Be8 {[%clk 0:02:20.8]} 19. Rd2 {[%clk 0:00:57.5]}
19... Nb7 {[%clk 0:02:20.4]} 20. Rfd1 {[%clk 0:00:50.2]} 20... Rxd2 {[%clk
0:02:20]} 21. Rxd2 {[%clk 0:00:50.4]} 21... f6 {[%clk 0:02:02.1]} 22. Nb5 {[%clk
0:00:49.2]} 22... Kb8 {[%clk 0:02:02.7]} 23. Nd6 {[%clk 0:00:42.7]} 23... Nca5
{[%clk 0:01:49.7]} 24. Nxe8 {[%clk 0:00:38]} 24... Rxe8 {[%clk 0:01:48]} 25. Rd7
{[%clk 0:00:38.1]} 25... Rd8 {[%clk 0:01:24.8]} 26. Rxg7 {[%clk 0:00:25.2]}
26... Rd1+ {[%clk 0:01:25.2]} 27. Bf1 {[%clk 0:00:25.6]} 27... Nc4 {[%clk
0:01:21.9]} 28. Bh6 {[%clk 0:00:17.2]} 28... Nbd6 {[%clk 0:01:18.1]} 29. Rxh7
{[%clk 0:00:15.9]} 29... Ne4 {[%clk 0:01:14.9]} 30. Kg2 {[%clk 0:00:14.7]} 30...
Nxb2 {[%clk 0:01:11.8]} 31. Ba6 {[%clk 0:00:14.8]} 31... Nd6 {[%clk 0:01:06.3]}
32. Rd7 {[%clk 0:00:13.5]} 32... Na4 {[%clk 0:00:58.9]} 33. Bf8 {[%clk
0:00:12.5]} 33... Nc5 {[%clk 0:00:57.9]} 34. Rxd6 {[%clk 0:00:12.4]} 34... Ra1
{[%clk 0:00:52.8]} 35. Rd8+ {[%clk 0:00:11.9]} 35... Kc7 {[%clk 0:00:53.4]} 36.
Rc8+ {[%clk 0:00:12.1]} 36... Kd7 {[%clk 0:00:54]} 37. Bxc5 {[%clk 0:00:12.3]}
37... bxc5 {[%clk 0:00:54.8]} 38. Bc4 {[%clk 0:00:11.7]} 38... Rxa2 {[%clk
0:00:55.7]} 39. Bxa2 {[%clk 0:00:11.6]} 39... Kxc8 {[%clk 0:00:56.6]} 40. Bxe6+
{[%clk 0:00:11.6]} 40... Kc7 {[%clk 0:00:57.5]} 41. h4 {[%clk 0:00:11.4]} 41...
Kd6 {[%clk 0:00:58.4]} 42. Bc4 {[%clk 0:00:11.4]} 42... Ke7 {[%clk 0:00:59.3]}
43. h5 {[%clk 0:00:11.4]} 43... Kf8 {[%clk 0:01:00.2]} 44. Kf3 {[%clk
0:00:11.6]} 44... Kg7 {[%clk 0:01:01.1]} 45. g4 {[%clk 0:00:11.6]} 45... Kh6
{[%clk 0:01:02]} 46. Kf4 {[%clk 0:00:12.1]} 46... a5 {[%clk 0:01:02.9]} 47. Kf5
{[%clk 0:00:12.2]} 47... a4 {[%clk 0:01:03.8]} 48. Kxf6 {[%clk 0:00:12.1]} 48...
a3 {[%clk 0:01:04.7]} 49. Ba2 {[%clk 0:00:11.3]} 49... c4 {[%clk 0:01:04.4]} 50.
Bxc4 {[%clk 0:00:10.7]} 50... a2 {[%clk 0:01:05.3]} 51. Bxa2 {[%clk 0:00:10.7]}
51... Kh7 {[%clk 0:01:06.2]} 52. c4 {[%clk 0:00:10.8]} 52... Kh6 {[%clk
0:01:07.1]} 53. c5 {[%clk 0:00:11]} 53... Kh7 {[%clk 0:01:08]} 54. c6 {[%clk
0:00:11.1]} 54... Kh6 {[%clk 0:01:08.9]} 55. c7 {[%clk 0:00:11]} 55... Kh7
{[%clk 0:01:09.8]} 56. c8=Q {[%clk 0:00:10.5]} 56... Kh6 {[%clk 0:01:10.7]} 57.
Qh8# {[%clk 0:00:10.9]} 1-0

[Event "Late-Titled-Tuesday-Blitz-March-19-2024"]
[Site "Chess.com"]
[Date "2024.03.19"]
[Round "7"]
[White "steepedgames"]
[Black "Masterisback04"]
[Result "1-0"]
[WhiteElo "2532"]
[BlackElo "1954"]
[TimeControl "180+1"]
[EndTime "15:16:00 PDT"]
[Termination "steepedgames won on time"]

1. d4 {[%clk 0:02:58.7]} 1... f5 {[%clk 0:02:59.6]} 2. c4 {[%clk 0:02:57.8]}
2... Nf6 {[%clk 0:02:52.8]} 3. Nc3 {[%clk 0:02:58.4]} 3... e6 {[%clk 0:02:52.2]}
4. e4 {[%clk 0:02:58.2]} 4... fxe4 {[%clk 0:02:50.3]} 5. Bg5 {[%clk 0:02:57.1]}
5... Be7 {[%clk 0:02:44.2]} 6. Bxf6 {[%clk 0:02:57]} 6... Bxf6 {[%clk 0:02:43]}
7. Nxe4 {[%clk 0:02:57.5]} 7... d5 {[%clk 0:02:22]} 8. cxd5 {[%clk 0:02:44.4]}
8... O-O {[%clk 0:02:19.5]} 9. Nxf6+ {[%clk 0:02:25.3]} 9... Qxf6 {[%clk
0:02:18.8]} 10. Nf3 {[%clk 0:02:25.3]} 10... exd5 {[%clk 0:02:16.8]} 11. Be2
{[%clk 0:02:20.5]} 11... Nc6 {[%clk 0:02:02]} 12. O-O {[%clk 0:02:18.3]} 12...
Ne7 {[%clk 0:02:02.1]} 13. Qb3 {[%clk 0:02:07.8]} 13... c6 {[%clk 0:02:01.7]}
14. Rfe1 {[%clk 0:01:59.2]} 14... Ng6 {[%clk 0:02:00.3]} 15. Qe3 {[%clk
0:01:39.2]} 15... Bg4 {[%clk 0:01:08.5]} 16. Ne5 {[%clk 0:01:20.1]} 16... Bxe2
{[%clk 0:01:04.1]} 17. Rxe2 {[%clk 0:01:17.4]} 17... Nf4 {[%clk 0:00:26.8]} 18.
Rd2 {[%clk 0:01:06.9]} 18... Rad8 {[%clk 0:00:26.8]} 19. g3 {[%clk 0:01:03.8]}
19... Ne6 {[%clk 0:00:13.3]} 20. Re1 {[%clk 0:01:02.5]} 20... Ng5 {[%clk
0:00:12.9]} 21. Rc2 {[%clk 0:00:49.8]} 21... Qf5 {[%clk 0:00:09.1]} 22. Rce2
{[%clk 0:00:44.9]} 22... Rde8 {[%clk 0:00:07]} 23. f4 {[%clk 0:00:44.1]} 23...
Ne4 {[%clk 0:00:03.9]} 24. Rf1 {[%clk 0:00:43.2]} 24... h6 {[%clk 0:00:03.7]}
25. g4 {[%clk 0:00:41.7]} 25... Qe6 {[%clk 0:00:03.1]} 26. f5 {[%clk 0:00:40.9]}
26... Qf6 {[%clk 0:00:02.9]} 27. Ng6 {[%clk 0:00:37.8]} 27... Rf7 {[%clk
0:00:02.1]} 28. Ne5 {[%clk 0:00:37.6]} 28... Rfe7 {[%clk 0:00:02]} 29. Qf4
{[%clk 0:00:33.8]} 29... c5 {[%clk 0:00:01.7]} 30. Nf3 {[%clk 0:00:22.4]} 30...
cxd4 {[%clk 0:00:02]} 31. Rd1 {[%clk 0:00:19.8]} 31... d3 {[%clk 0:00:02.5]} 32.
Rxd3 {[%clk 0:00:19.3]} 32... Ng5 {[%clk 0:00:01.6]} 33. Rxe7 {[%clk 0:00:19.1]}
33... Rxe7 {[%clk 0:00:01.2]} 34. Nxg5 {[%clk 0:00:19.2]} 34... hxg5 {[%clk
0:00:02]} 35. Qd4 {[%clk 0:00:18.9]} 1-0

[Event "Late-Titled-Tuesday-Blitz-March-19-2024"]
[Site "Chess.com"]
[Date "2024.03.19"]
[Round "7"]
[White "joksijoksi"]
[Black "Jahonas"]
[Result "1-0"]
[WhiteElo "2576"]
[BlackElo "2369"]
[TimeControl "180+1"]
[EndTime "15:16:01 PDT"]
[Termination "joksijoksi won by resignation"]

1. d4 {[%clk 0:03:00.9]} 1... Nf6 {[%clk 0:02:59.2]} 2. Nf3 {[%clk 0:02:57.7]}
2... d5 {[%clk 0:02:58.7]} 3. c4 {[%clk 0:02:56.6]} 3... c6 {[%clk 0:02:57.6]}
4. Nbd2 {[%clk 0:02:54.6]} 4... Bf5 {[%clk 0:02:52.6]} 5. g3 {[%clk 0:02:54.6]}
5... e6 {[%clk 0:02:52.2]} 6. Bg2 {[%clk 0:02:44]} 6... Nbd7 {[%clk 0:02:50.4]}
7. O-O {[%clk 0:02:30.4]} 7... Be7 {[%clk 0:02:50.1]} 8. b3 {[%clk 0:02:15.2]}
8... O-O {[%clk 0:02:49]} 9. Bb2 {[%clk 0:02:07]} 9... h6 {[%clk 0:02:48.1]} 10.
Rc1 {[%clk 0:01:43.6]} 10... Ne4 {[%clk 0:02:47.2]} 11. Nxe4 {[%clk 0:01:38.8]}
11... Bxe4 {[%clk 0:02:46.7]} 12. a3 {[%clk 0:01:23.6]} 12... Re8 {[%clk
0:02:38.4]} 13. b4 {[%clk 0:01:19]} 13... Bf6 {[%clk 0:02:36.7]} 14. b5 {[%clk
0:01:16.3]} 14... cxb5 {[%clk 0:02:33]} 15. cxb5 {[%clk 0:01:15.9]} 15... Qb6
{[%clk 0:02:29.6]} 16. a4 {[%clk 0:01:13.9]} 16... a6 {[%clk 0:02:24.6]} 17. Qb3
{[%clk 0:01:09.8]} 17... axb5 {[%clk 0:02:20.5]} 18. axb5 {[%clk 0:01:10.7]}
18... Bxf3 {[%clk 0:02:12]} 19. Bxf3 {[%clk 0:01:01.1]} 19... Rec8 {[%clk
0:02:08]} 20. e3 {[%clk 0:00:49.9]} 20... g6 {[%clk 0:02:07.7]} 21. Rxc8+ {[%clk
0:00:48.8]} 21... Rxc8 {[%clk 0:02:07]} 22. Rc1 {[%clk 0:00:49.6]} 22... Rxc1+
{[%clk 0:02:03.9]} 23. Bxc1 {[%clk 0:00:50.5]} 23... Kg7 {[%clk 0:01:54]} 24.
Ba3 {[%clk 0:00:44.8]} 24... Qa5 {[%clk 0:01:52]} 25. Kg2 {[%clk 0:00:43.5]}
25... Qd2 {[%clk 0:01:44.8]} 26. Bb4 {[%clk 0:00:35.8]} 26... Qc1 {[%clk
0:01:40]} 27. Ba3 {[%clk 0:00:33]} 27... Qc8 {[%clk 0:01:33.5]} 28. Qb4 {[%clk
0:00:32]} 28... Nb6 {[%clk 0:01:31]} 29. Be2 {[%clk 0:00:25.8]} 29... Nc4 {[%clk
0:01:24.9]} 30. Bxc4 {[%clk 0:00:25.7]} 30... dxc4 {[%clk 0:01:21.9]} 31. Qc5
{[%clk 0:00:25.5]} 31... Qa8 {[%clk 0:00:39.8]} 32. Bb4 {[%clk 0:00:23]} 32...
b6+ {[%clk 0:00:38.2]} 33. Qc6 {[%clk 0:00:21.3]} 33... Qa2 {[%clk 0:00:35.6]}
34. Qxb6 {[%clk 0:00:19.3]} 34... Qb3 {[%clk 0:00:31.7]} 35. Qd6 {[%clk
0:00:19.6]} 35... Kh7 {[%clk 0:00:30.8]} 36. Qf8 {[%clk 0:00:18.8]} 36... c3
{[%clk 0:00:28]} 37. Qxf7+ {[%clk 0:00:18.7]} 37... Bg7 {[%clk 0:00:28.3]} 38.
Bf8 {[%clk 0:00:18.1]} 38... Qd5+ {[%clk 0:00:27.1]} 39. f3 {[%clk 0:00:18.2]}
1-0

[Event "Late-Titled-Tuesday-Blitz-March-19-2024"]
[Site "Chess.com"]
[Date "2024.03.19"]
[Round "7"]
[White "TenisMaster"]
[Black "IMchanged"]
[Result "0-1"]
[WhiteElo "2845"]
[BlackElo "2677"]
[TimeControl "180+1"]
[EndTime "15:16:02 PDT"]
[Termination "IMchanged won on time"]

1. e4 {[%clk 0:02:57.4]} 1... c5 {[%clk 0:02:59.6]} 2. Nf3 {[%clk 0:02:57.1]}
2... d6 {[%clk 0:03:00.2]} 3. d4 {[%clk 0:02:57]} 3... cxd4 {[%clk 0:03:00.8]}
4. Nxd4 {[%clk 0:02:57.9]} 4... Nf6 {[%clk 0:03:01.2]} 5. Nc3 {[%clk 0:02:58.5]}
5... Nc6 {[%clk 0:03:01.6]} 6. Bg5 {[%clk 0:02:57.7]} 6... e6 {[%clk 0:03:01.9]}
7. Qd2 {[%clk 0:02:57.4]} 7... a6 {[%clk 0:03:01.8]} 8. O-O-O {[%clk 0:02:57.3]}
8... Be7 {[%clk 0:02:59.7]} 9. f3 {[%clk 0:02:45.7]} 9... Nxd4 {[%clk
0:02:58.4]} 10. Qxd4 {[%clk 0:02:45.1]} 10... b5 {[%clk 0:02:59.1]} 11. Bxf6
{[%clk 0:02:40.5]} 11... Bxf6 {[%clk 0:02:56.5]} 12. Qxd6 {[%clk 0:02:40.4]}
12... Qxd6 {[%clk 0:02:55.7]} 13. Rxd6 {[%clk 0:02:40]} 13... Ke7 {[%clk
0:02:56.3]} 14. Rd3 {[%clk 0:02:38.1]} 14... Bb7 {[%clk 0:02:55.9]} 15. Be2
{[%clk 0:02:30.5]} 15... Be5 {[%clk 0:02:53.5]} 16. g3 {[%clk 0:02:27.6]} 16...
g5 {[%clk 0:02:50.9]} 17. Rhd1 {[%clk 0:02:26.6]} 17... Bc6 {[%clk 0:02:50.4]}
18. a3 {[%clk 0:02:25.7]} 18... h5 {[%clk 0:02:46.2]} 19. Na2 {[%clk 0:02:25]}
19... a5 {[%clk 0:02:44.8]} 20. Rf1 {[%clk 0:02:19.8]} 20... Bf6 {[%clk
0:02:18.9]} 21. Rb3 {[%clk 0:02:10.5]} 21... Rab8 {[%clk 0:02:12.5]} 22. Nc3
{[%clk 0:01:38.7]} 22... b4 {[%clk 0:02:06.7]} 23. axb4 {[%clk 0:01:38.7]} 23...
a4 {[%clk 0:02:05]} 24. Ra3 {[%clk 0:01:31.9]} 24... Rxb4 {[%clk 0:02:03.8]} 25.
Bd3 {[%clk 0:01:27.7]} 25... Rhb8 {[%clk 0:02:01.6]} 26. f4 {[%clk 0:01:23.2]}
26... gxf4 {[%clk 0:01:55.4]} 27. gxf4 {[%clk 0:01:24.1]} 27... Bd4 {[%clk
0:01:52.5]} 28. Nd1 {[%clk 0:01:05.5]} 28... Rxb2 {[%clk 0:01:37]} 29. Kd2
{[%clk 0:01:02.3]} 29... Rb1 {[%clk 0:01:29.5]} 30. c3 {[%clk 0:00:33.4]} 30...
Bc5 {[%clk 0:01:25.6]} 31. Ra2 {[%clk 0:00:25.9]} 31... R1b6 {[%clk 0:01:21.3]}
32. Ne3 {[%clk 0:00:21.8]} 32... Rb2+ {[%clk 0:01:19.3]} 33. Rxb2 {[%clk
0:00:22.2]} 33... Rxb2+ {[%clk 0:01:19.7]} 34. Nc2 {[%clk 0:00:22.9]} 34... a3
{[%clk 0:01:17.9]} 35. Ra1 {[%clk 0:00:22.3]} 35... Ba4 {[%clk 0:01:11.8]} 36.
e5 {[%clk 0:00:17.3]} 36... Bb3 {[%clk 0:00:55.7]} 37. Be4 {[%clk 0:00:14.5]}
37... f5 {[%clk 0:00:38.9]} 38. exf6+ {[%clk 0:00:13.1]} 38... Kxf6 {[%clk
0:00:39.5]} 39. Bd3 {[%clk 0:00:13.1]} 39... h4 {[%clk 0:00:39.1]} 40. h3 {[%clk
0:00:12.9]} 40... Bd6 {[%clk 0:00:36.9]} 41. Rf1 {[%clk 0:00:11.3]} 41... a2
{[%clk 0:00:33.3]} 42. Ra1 {[%clk 0:00:01.7]} 42... Bxf4+ {[%clk 0:00:32.8]} 0-1

[Event "Late-Titled-Tuesday-Blitz-March-19-2024"]
[Site "Chess.com"]
[Date "2024.03.19"]
[Round "7"]
[White "TigrVShlyape"]
[Black "jefferyx"]
[Result "0-1"]
[WhiteElo "2935"]
[BlackElo "3099"]
[TimeControl "180+1"]
[EndTime "15:16:05 PDT"]
[Termination "jefferyx won on time"]

1. e4 {[%clk 0:03:00.9]} 1... c6 {[%clk 0:02:57.4]} 2. d3 {[%clk 0:02:52.3]}
2... g6 {[%clk 0:02:55.5]} 3. Nf3 {[%clk 0:02:51.8]} 3... Bg7 {[%clk 0:02:55.5]}
4. d4 {[%clk 0:02:50.8]} 4... d5 {[%clk 0:02:52.4]} 5. Nbd2 {[%clk 0:02:45.1]}
5... dxe4 {[%clk 0:02:48.9]} 6. Nxe4 {[%clk 0:02:44.7]} 6... Nf6 {[%clk
0:02:49.8]} 7. Nxf6+ {[%clk 0:02:44.3]} 7... exf6 {[%clk 0:02:50.7]} 8. Bc4
{[%clk 0:02:35.1]} 8... O-O {[%clk 0:02:50.7]} 9. O-O {[%clk 0:02:35]} 9... Nd7
{[%clk 0:02:51.4]} 10. c3 {[%clk 0:02:33.9]} 10... b5 {[%clk 0:02:41.9]} 11. Bb3
{[%clk 0:02:32.7]} 11... Nb6 {[%clk 0:02:42.4]} 12. Re1 {[%clk 0:02:23.9]} 12...
a5 {[%clk 0:02:42.8]} 13. Bf4 {[%clk 0:02:03.3]} 13... a4 {[%clk 0:02:42.3]} 14.
Bc2 {[%clk 0:02:03.1]} 14... Be6 {[%clk 0:02:42.7]} 15. b3 {[%clk 0:01:43.6]}
15... Re8 {[%clk 0:02:38.9]} 16. h3 {[%clk 0:01:40.5]} 16... Qd7 {[%clk
0:02:38.5]} 17. Qd2 {[%clk 0:01:35.1]} 17... Bf8 {[%clk 0:02:38.4]} 18. Nh2
{[%clk 0:01:18.6]} 18... Nd5 {[%clk 0:02:37.3]} 19. Bg3 {[%clk 0:01:17.5]} 19...
axb3 {[%clk 0:02:32.1]} 20. axb3 {[%clk 0:01:16.2]} 20... Bd6 {[%clk 0:02:32.4]}
21. Nf1 {[%clk 0:01:13.4]} 21... f5 {[%clk 0:02:29.7]} 22. Bxd6 {[%clk
0:01:11.7]} 22... Qxd6 {[%clk 0:02:30.6]} 23. Ne3 {[%clk 0:01:06.1]} 23... Nf6
{[%clk 0:02:31]} 24. Nf1 {[%clk 0:00:59.1]} 24... f4 {[%clk 0:02:30.8]} 25. Nh2
{[%clk 0:00:56.2]} 25... Rxa1 {[%clk 0:02:28]} 26. Rxa1 {[%clk 0:00:55.3]} 26...
Bd5 {[%clk 0:02:28.9]} 27. Nf3 {[%clk 0:00:35.3]} 27... Bxf3 {[%clk 0:01:46.6]}
28. gxf3 {[%clk 0:00:35.1]} 28... Qe6 {[%clk 0:01:47.3]} 29. Kg2 {[%clk
0:00:33.1]} 29... Qe2 {[%clk 0:01:43.8]} 30. Qxe2 {[%clk 0:00:30.3]} 30... Rxe2
{[%clk 0:01:44.6]} 31. Rc1 {[%clk 0:00:28.8]} 31... Rd2 {[%clk 0:01:40.6]} 32.
Kf1 {[%clk 0:00:28]} 32... b4 {[%clk 0:01:39.1]} 33. cxb4 {[%clk 0:00:27]} 33...
Rxd4 {[%clk 0:01:38.2]} 34. Bd1 {[%clk 0:00:22.6]} 34... Nd5 {[%clk 0:01:38.2]}
35. Be2 {[%clk 0:00:19.5]} 35... Nxb4 {[%clk 0:01:25.9]} 36. Bc4 {[%clk
0:00:16.2]} 36... Rd2 {[%clk 0:01:24.1]} 37. Ra1 {[%clk 0:00:14.7]} 37... Nd3
{[%clk 0:01:20.2]} 38. Bxd3 {[%clk 0:00:12.7]} 38... Rxd3 {[%clk 0:01:21.1]} 39.
Kg2 {[%clk 0:00:11.9]} 39... Rxb3 {[%clk 0:01:21.2]} 40. Rc1 {[%clk 0:00:12.1]}
40... Rb6 {[%clk 0:01:21.6]} 41. h4 {[%clk 0:00:11.9]} 41... h6 {[%clk
0:01:21.9]} 42. Rc4 {[%clk 0:00:11.8]} 42... g5 {[%clk 0:01:22.3]} 43. Kh3
{[%clk 0:00:11.1]} 43... Kg7 {[%clk 0:01:16.3]} 44. Rc5 {[%clk 0:00:10.3]} 44...
Kg6 {[%clk 0:01:15.9]} 45. hxg5 {[%clk 0:00:09.3]} 45... hxg5 {[%clk 0:01:16.8]}
46. Kg4 {[%clk 0:00:09.5]} 46... f6 {[%clk 0:01:16.9]} 47. Kh3 {[%clk
0:00:08.7]} 47... Kf7 {[%clk 0:01:16.8]} 48. Kg4 {[%clk 0:00:08.2]} 48... Ke6
{[%clk 0:01:17.4]} 49. Rc2 {[%clk 0:00:07.6]} 49... Kd5 {[%clk 0:01:17.1]} 50.
Rd2+ {[%clk 0:00:06.4]} 50... Ke5 {[%clk 0:01:16.1]} 51. Re2+ {[%clk 0:00:06.1]}
51... Kd6 {[%clk 0:01:15.5]} 52. Rd2+ {[%clk 0:00:06.2]} 52... Kc7 {[%clk
0:01:15.8]} 53. Rc2 {[%clk 0:00:06.6]} 53... Rb5 {[%clk 0:01:15.8]} 54. Kh5
{[%clk 0:00:06.7]} 54... Rb3 {[%clk 0:01:12.2]} 55. Kg6 {[%clk 0:00:06.3]} 55...
Rxf3 {[%clk 0:01:12]} 56. Kxf6 {[%clk 0:00:05.8]} 56... g4 {[%clk 0:01:12.6]}
57. Ke5 {[%clk 0:00:01.4]} 57... g3 {[%clk 0:01:12]} 58. fxg3 {[%clk 0:00:01.7]}
58... fxg3 {[%clk 0:01:12.9]} 59. Rc4 {[%clk 0:00:01.8]} 59... Re3+ {[%clk
0:01:07.6]} 60. Kf4 {[%clk 0:00:01]} 60... g2 {[%clk 0:01:06.8]} 61. Rc1 {[%clk
0:00:01.2]} 61... Re8 {[%clk 0:01:06.9]} 0-1

[Event "Late-Titled-Tuesday-Blitz-March-19-2024"]
[Site "Chess.com"]
[Date "2024.03.19"]
[Round "7"]
[White "Grischuk"]
[Black "Onischuk_V"]
[Result "1-0"]
[WhiteElo "3044"]
[BlackElo "2805"]
[TimeControl "180+1"]
[EndTime "15:16:09 PDT"]
[Termination "Grischuk won on time"]

1. d4 {[%clk 0:03:00.9]} 1... d6 {[%clk 0:03:00.1]} 2. e4 {[%clk 0:02:51.1]}
2... Nf6 {[%clk 0:03:00.2]} 3. Nc3 {[%clk 0:02:47.6]} 3... g6 {[%clk 0:03:00.5]}
4. Nf3 {[%clk 0:02:46.7]} 4... Bg7 {[%clk 0:03:01]} 5. Be3 {[%clk 0:02:47.4]}
5... c6 {[%clk 0:02:59]} 6. h3 {[%clk 0:02:42.6]} 6... Qa5 {[%clk 0:02:53.6]} 7.
Bd3 {[%clk 0:02:39.2]} 7... Nbd7 {[%clk 0:02:51.7]} 8. O-O {[%clk 0:02:38.2]}
8... e5 {[%clk 0:02:52.2]} 9. Ne2 {[%clk 0:02:30.4]} 9... h6 {[%clk 0:02:45.8]}
10. Ng3 {[%clk 0:02:28.2]} 10... O-O {[%clk 0:02:45.1]} 11. c3 {[%clk
0:02:27.9]} 11... Qd8 {[%clk 0:02:38.8]} 12. Re1 {[%clk 0:02:26.9]} 12... Qe7
{[%clk 0:02:36.8]} 13. a4 {[%clk 0:02:25.2]} 13... a5 {[%clk 0:02:33.6]} 14. Qd2
{[%clk 0:02:24.3]} 14... Kh7 {[%clk 0:02:33.7]} 15. Rad1 {[%clk 0:02:16.4]}
15... Re8 {[%clk 0:02:33.7]} 16. Bc2 {[%clk 0:02:12.2]} 16... Nf8 {[%clk
0:02:32.1]} 17. Qc1 {[%clk 0:02:07.5]} 17... Qc7 {[%clk 0:01:38]} 18. b4 {[%clk
0:01:46.8]} 18... Be6 {[%clk 0:01:34.7]} 19. Qb2 {[%clk 0:01:40.1]} 19... N8d7
{[%clk 0:01:27.8]} 20. Qb1 {[%clk 0:01:21.9]} 20... axb4 {[%clk 0:01:13.9]} 21.
cxb4 {[%clk 0:01:21]} 21... Nb6 {[%clk 0:01:14]} 22. dxe5 {[%clk 0:00:55]} 22...
dxe5 {[%clk 0:01:13.5]} 23. a5 {[%clk 0:00:51.3]} 23... Nc4 {[%clk 0:01:12.9]}
24. Bb3 {[%clk 0:00:43.7]} 24... Nd7 {[%clk 0:00:52.9]} 25. Rc1 {[%clk
0:00:39.4]} 25... Nxe3 {[%clk 0:00:44.6]} 26. Rxe3 {[%clk 0:00:40.3]} 26... Bf8
{[%clk 0:00:44.4]} 27. h4 {[%clk 0:00:33.5]} 27... Rad8 {[%clk 0:00:28.4]} 28.
h5 {[%clk 0:00:33.3]} 28... Qd6 {[%clk 0:00:26.8]} 29. hxg6+ {[%clk 0:00:31.7]}
29... fxg6 {[%clk 0:00:26.7]} 30. Bxe6 {[%clk 0:00:28.2]} 30... Qxe6 {[%clk
0:00:22.2]} 31. Rec3 {[%clk 0:00:24.8]} 31... Nf6 {[%clk 0:00:16.7]} 32. b5
{[%clk 0:00:20.7]} 32... cxb5 {[%clk 0:00:07.6]} 33. Qxb5 {[%clk 0:00:21.6]}
33... Rd7 {[%clk 0:00:06.9]} 34. Rc7 {[%clk 0:00:21.2]} 34... Rd8 {[%clk
0:00:03.9]} 35. Qxb7 {[%clk 0:00:20.2]} 35... Ng4 {[%clk 0:00:01.9]} 36. a6
{[%clk 0:00:17.2]} 1-0

[Event "Late-Titled-Tuesday-Blitz-March-19-2024"]
[Site "Chess.com"]
[Date "2024.03.19"]
[Round "7"]
[White "JoakimVonAnd"]
[Black "Baronessa08"]
[Result "1-0"]
[WhiteElo "2718"]
[BlackElo "2592"]
[TimeControl "180+1"]
[EndTime "15:16:09 PDT"]
[Termination "JoakimVonAnd won on time"]

1. d4 {[%clk 0:03:00.9]} 1... d5 {[%clk 0:02:59.8]} 2. Nf3 {[%clk 0:03:01]} 2...
Nf6 {[%clk 0:02:59.5]} 3. Bf4 {[%clk 0:03:01.6]} 3... e6 {[%clk 0:02:58.3]} 4.
e3 {[%clk 0:03:01.1]} 4... c5 {[%clk 0:02:58.7]} 5. Nbd2 {[%clk 0:03:00.1]} 5...
Nc6 {[%clk 0:02:59.3]} 6. c3 {[%clk 0:02:59.9]} 6... cxd4 {[%clk 0:02:59.7]} 7.
exd4 {[%clk 0:02:59.9]} 7... Nh5 {[%clk 0:03:00.3]} 8. Be3 {[%clk 0:02:58]} 8...
Bd6 {[%clk 0:02:59.1]} 9. Bd3 {[%clk 0:02:58]} 9... Nf4 {[%clk 0:02:57.3]} 10.
Bxf4 {[%clk 0:02:58.4]} 10... Bxf4 {[%clk 0:02:58.2]} 11. g3 {[%clk 0:02:58.2]}
11... Bd6 {[%clk 0:02:56.4]} 12. O-O {[%clk 0:02:58.2]} 12... O-O {[%clk
0:02:51.7]} 13. h4 {[%clk 0:02:55]} 13... h6 {[%clk 0:02:46.9]} 14. Re1 {[%clk
0:02:51.8]} 14... Qc7 {[%clk 0:02:46.3]} 15. Kg2 {[%clk 0:02:51.8]} 15... b6
{[%clk 0:02:39.2]} 16. Qe2 {[%clk 0:02:45.7]} 16... a5 {[%clk 0:02:35.4]} 17.
Ne5 {[%clk 0:02:42.7]} 17... Bxe5 {[%clk 0:02:34.7]} 18. dxe5 {[%clk 0:02:42.2]}
18... d4 {[%clk 0:02:29.9]} 19. Rac1 {[%clk 0:02:21.8]} 19... Bb7 {[%clk
0:02:21.5]} 20. Kh2 {[%clk 0:02:21.9]} 20... dxc3 {[%clk 0:01:50.9]} 21. Rxc3
{[%clk 0:02:19.9]} 21... Qd7 {[%clk 0:01:29.2]} 22. Nc4 {[%clk 0:02:19.3]} 22...
Nd4 {[%clk 0:01:25.9]} 23. Nxb6 {[%clk 0:02:08]} 23... Qd8 {[%clk 0:01:25.4]}
24. Qe3 {[%clk 0:01:19.3]} 24... Nf3+ {[%clk 0:01:25]} 25. Kh3 {[%clk
0:01:08.1]} 25... Nxe1 {[%clk 0:01:25.2]} 26. Bb1 {[%clk 0:01:06.6]} 26... Ra6
{[%clk 0:01:10.5]} 27. Nc4 {[%clk 0:01:04.6]} 27... Nf3 {[%clk 0:00:30]} 28. Nd6
{[%clk 0:01:03]} 28... Bd5 {[%clk 0:00:27.1]} 29. Qd3 {[%clk 0:01:01.7]} 29...
f5 {[%clk 0:00:20.4]} 30. exf6 {[%clk 0:00:48.4]} 30... Rxf6 {[%clk 0:00:12.4]}
31. Qxa6 {[%clk 0:00:35]} 31... Ng1+ {[%clk 0:00:08.4]} 32. Kg4 {[%clk
0:00:25.8]} 32... h5+ {[%clk 0:00:07.9]} 33. Kxh5 {[%clk 0:00:18.2]} 33... Rh6+
{[%clk 0:00:08.1]} 34. Kg4 {[%clk 0:00:18.7]} 34... Rxh4+ {[%clk 0:00:01.9]} 35.
gxh4 {[%clk 0:00:18.6]} 35... Qf6 {[%clk 0:00:01.4]} 36. Qc8+ {[%clk 0:00:16.9]}
1-0